[Event "FIDE Candidates 2024"]
[Site "Toronto"]
[Date "2024.04.11"]
[Round "7.1"]
[White "Firouzja, Alireza"]
[Black "Gukesh D"]
[Result "1-0"]
[ECO "D02"]
[WhiteElo "2760"]
[BlackElo "2743"]
[Annotator "TA"]
[PlyCount "79"]
[EventDate "2024.04.02"]
[EventType "tourn"]
[EventCountry "CAN"]
[SourceTitle "playchess.com"]
[Source "ChessBase"]
[SourceQuality "1"]
[TimeControl "40/7200:1800+30"]

{[%evp 10,79,15,12,13,12,12,13,16,7,14,-8,0,0,0,0,0,0,0,0,0,0,0,0,0,0,0,0,0,0,0,0,0,-64,-69,-84,-72,-65,-56,-57,-72,-69,-50,-52,-25,-37,-35,-25,-8,-22,0,0,0,0,0,0,0,0,0,0,0,0,8,10,200,200,6215,6207,29993,29994,29998,29999]} 1. d4 {[%emt 0:00:02]} Nf6 {[%emt 0:00:08]} 2. Bf4 {[%emt 0:00:06]} d5 {[%emt 0:01:33]} 3. e3 {[%emt 0:00:06]} c5 {[%emt 0:00:49]} 4. Nf3 {[%emt 0:00:19]} e6 {[%emt 0:01:34]} 5. Nbd2 {[%emt 0:00:23]} Qb6 {[%emt 0:01:40]} 6. Rb1 {[%emt 0:00:08] D02: 1 d4 d5 2 Nf3 sidelines, including 2...Nf6 3 g3 and 2...Nf6 3 Bf4.} cxd4 {[%emt 0:01:28] 6...Bd7 is the recent fashion.} 7. exd4 {[%emt 0:00:17]} Bd7 {[%emt 0:00:06]} 8. c3 {[%emt 0:02:57]} Bb5 {[%emt 0:00:13]} 9. h4 {[%emt 0:00:40]} Nbd7 {[%emt 0:11:12]} 10. Rh3 $146 {[%emt 0:30:00]} ({Predecessor:} 10. Bxb5 Qxb5 11. Qe2 Qxe2+ 12. Kxe2 h5 13. a4 Be7 14. g3 a5 15. Ne1 O-O 16. Nd3 {½-½ Owen,K (2379)-Antal,J (2356) Champion's League 2021/C8 email}) 10... Be7 {[%emt 0:08:21]} 11. h5 {[%emt 0:11:09]} h6 {[%emt 0:00:47]} 12. a4 {[%emt 0:12:40]} Bxf1 {[%emt 0:00:29]} 13. Kxf1 {[%emt 0:00:03]} O-O {[%emt 0:03:47]} 14. Kg1 {[%emt 0:01:32]} Qc6 {[%emt 0:11:14]} 15. Ne5 {[%emt 0:13:44]} Nxe5 {[%emt 0:00:34]} 16. dxe5 {[%emt 0:06:40]} Nd7 {[%emt 0:04:12]} 17. Rg3 {[%emt 0:09:05]} Kh8 {[%emt 0:06:17]} 18. a5 {[%emt 0:02:15]} Qc7 {[%emt 0:07:32]} 19. Nf3 {[%emt 0:01:21]} (19. Qg4 Rg8 $15) 19... Qxa5 {[%emt 0:16:59]} 20. c4 {[%emt 0:02:48]} Rg8 {[%emt 0:15:41]} 21. Ra1 {[%emt 0:08:52]} (21. cxd5 $11 Qxd5 22. Qxd5 exd5 23. Rd1) 21... Qb4 $15 {[%emt 0:03:26]} 22. b3 {[%emt 0:02:01]} (22. Ra4 $2 Qxb2 23. Be3 Bc5 (23... Nxe5 $2 24. Bd4 $18) 24. cxd5 exd5 $17) 22... Nc5 {[%emt 0:00:37]} 23. Nd4 {[%emt 0:05:21]} Ne4 $1 {[%emt 0:01:00]} (23... dxc4 $2 24. Bd2 $18) 24. Re3 $1 {[%emt 0:01:18]} Qc5 {[%emt 0:04:09]} 25. Rc1 {[%emt 0:01:32]} Rgd8 {[%emt 0:00:41]} 26. b4 {[%emt 0:00:42]} Qxb4 {[%emt 0:01:56]} 27. cxd5 {[%emt 0:00:55]} Nxf2 {[%emt 0:00:51]} (27... exd5 {simplifies} 28. Rb3 Qa4 29. Rxb7 Qxd1+ 30. Rxd1 Bc5) 28. Kxf2 {[%emt 0:00:08]} Rxd5 {[%emt 0:00:04]} (28... Bc5 29. Rxc5 Qxc5 30. d6 $16) 29. Re4 $1 {[%emt 0:00:10]} Rad8 {[%emt 0:02:28]} 30. Be3 $1 {[%emt 0:00:07]} Bc5 {[%emt 0:01:37]} 31. Qb3 $1 {[%emt 0:00:46]} Qxb3 {[%emt 0:03:38]} (31... Rxd4 {with more complications.} 32. Rxd4 Qxb3 33. Rxd8+ Kh7) 32. Nxb3 {[%emt 0:00:01]} Bxe3+ {[%emt 0:00:06]} 33. Rxe3 {[%emt 0:00:01]} a5 {[%emt 0:02:18]} 34. Rc7 {[%emt 0:00:43]} a4 {[%emt 0:00:21]} 35. Nc5 {[%emt 0:00:01]} Ra8 {[%emt 0:00:48]} 36. Nd7 {[%emt 0:00:31]} Kh7 $2 {[%emt 0:01:01] [#]} (36... a3 37. Rxa3 Rd8 (37... Rxa3 38. Rc8+ Kh7 39. Nf8+ Kg8 40. Ng6+) 38. Nb6 Rxe5 39. g4 $18 (39. Rxb7 Rd2+ 40. Kg3 Rg5+ 41. Kf4 Rdxg2 $11) (39. Rxf7 Kg8 $16)) (36... b5 $11 {and Black is okay.}) 37. Rf3 $1 $18 {[%emt 0:00:22]} (37. Rxb7 a3 38. Re1 Rd2+ 39. Kg3 a2 $11) 37... a3 $2 {[%emt 0:00:15]} (37... Kg8 38. Nb6 (38. Rxb7 Rd8 $16) 38... Rd2+ 39. Kg3 Rf8) 38. Rxf7 $18 {[%emt 0:00:02]} Kh8 {[%emt 0:00:06]} 39. Nf8 {[%emt 0:00:06]} ({Worse is} 39. Rxb7 Rxd7 (39... a2 40. Nf8 Rd2+ 41. Kg3 Kg8 42. Ng6 Ra3+ 43. Kh2) 40. Rfxd7 a2 $11) 39... a2 {[%emt 0:00:00]} 40. Ng6+ {[%emt 0:00:00]} 1-0

[Event "FIDE Candidates 2024"]
[Site "Toronto"]
[Date "2024.04.11"]
[Round "7.2"]
[White "Nakamura, Hikaru"]
[Black "Nepomniachtchi, Ian"]
[Result "1/2-1/2"]
[ECO "C42"]
[WhiteElo "2789"]
[BlackElo "2758"]
[Annotator "TA"]
[PlyCount "80"]
[EventDate "2024.04.02"]
[EventType "tourn"]
[EventCountry "CAN"]
[SourceTitle "playchess.com"]
[Source "ChessBase"]
[SourceQuality "1"]
[TimeControl "40/7200:1800+30"]

{[%evp 18,80,17,25,22,8,15,9,42,15,36,0,0,8,20,15,0,7,7,0,40,0,0,31,58,56,64,54,94,85,83,91,83,73,61,0,0,0,0,0,0,0,0,0,0,0,0,0,0,0,0,0,0,0,0,0,0,0,0,0,0,0,0,0,0]} 1. e4 {[%emt 0:00:06]} e5 {[%emt 0:00:21]} 2. Nf3 {[%emt 0:00:27]} Nf6 {[%emt 0:00:08]} 3. Nxe5 {[%emt 0:00:13]} d6 {[%emt 0:00:07]} 4. Nf3 {[%emt 0:00:04]} Nxe4 {[%emt 0:00:07]} 5. d4 {[%emt 0:00:09]} d5 {[%emt 0:00:08]} 6. Bd3 {[%emt 0:00:08]} Bd6 {[%emt 0:00:06]} 7. O-O {[%emt 0:00:07]} O-O {[%emt 0:00:07]} 8. c4 {[%emt 0:00:02]} c6 {[%emt 0:00:08]} 9. Re1 {[%emt 0:00:04]} Bf5 {[%emt 0:00:35]} 10. Qb3 {[%emt 0:00:08]} Qd7 {[%emt 0:00:27]} 11. c5 {[%emt 0:00:06]} Bc7 {[%emt 0:00:20]} 12. g3 {[%emt 0:00:05][%cal Ob1d2]} a5 {[%emt 0:04:07]} 13. Nbd2 {[%emt 0:01:09][%cal Rd2e4]} (13. Qxb7 Na6 14. Bxa6 Rfb8 $11) 13... Be6 {[%emt 0:02:29]} 14. Qxb7 {[%emt 0:00:30]} (14. Nxe4 $5 dxe4 15. Qxb7 exd3 16. Qxa8 $11) 14... Nxf2 {[%emt 0:00:43]} 15. Bxh7+ {[%emt 0:00:10]} Kxh7 {[%emt 0:00:07]} 16. Qxa8 {[%emt 0:00:03]} Nh3+ {[%emt 0:01:22]} 17. Kg2 {[%emt 0:00:06]} Bg4 {[%emt 0:04:54]} 18. Qb7 {[%emt 0:00:30]} Re8 $1 {[%emt 0:04:55]} 19. Qb3 {[%emt 0:00:06] Strongly threatening Rxe8.} ({Avoid the trap} 19. Rxe8 $2 Qxe8 20. Ne5 Bxe5 $19) 19... Rxe1 {[%emt 0:12:18]} 20. Nxe1 {[%emt 0:00:32] Ndf3 would now be deadly.} Qe6 $1 {[%emt 0:02:47] [#] ( -> ...Qe2+)} 21. Qd3+ {[%emt 0:00:04]} Bf5 {[%emt 0:06:30]} 22. Qf1 {[%emt 0:00:35]} Nd7 {[%emt 0:16:20][%cal Bb8d7,Bd7f6,Bf6e4][%mdl 32]} 23. Nef3 {[%emt 0:17:11]} Nf6 {[%emt 0:04:52][%cal Of6g4]} 24. Ng1 {[%emt 0:03:27]} Kg8 {[%emt 0:16:30]} 25. Qe2 {[%emt 0:03:37] [#] Black must now prevent Qxe6.} Ne4 {[%emt 0:00:22][%cal Oc7g3]} 26. a4 {[%emt 0:39:56]} (26. Nxh3 $14 Bxh3+ 27. Kg1) 26... Bxg3 $11 {[%emt 0:11:34] The position is equal.} 27. hxg3 {[%emt 0:03:38]} Nf4+ $1 {[%emt 0:00:07]} 28. gxf4 {[%emt 0:00:02]} Qg6+ {[%emt 0:00:07]} 29. Kf1 {[%emt 0:00:02][%cal Bg2f1,Bf1e1,Be1e2,Be2d1,Bd1c2,Bc2c3][%mdl 32]} ({But not} 29. Kh2 $2 Qg3+ 30. Kh1 Nf2+ $19 (30... Qxf4 $2 {too greedy.} 31. Ra3 $18) (30... Qxf4 $2 31. Qh2 $18)) 29... Ng3+ {[%emt 0:00:09]} 30. Ke1 {[%emt 0:00:44]} Nxe2 {[%emt 0:00:08]} 31. Nxe2 {[%emt 0:00:02]} Bg4 $1 {[%emt 0:01:34] ...Qe6 is the strong threat.} 32. Ra3 {[%emt 0:00:18]} Bxe2 $1 {[%emt 0:03:50]} 33. Kxe2 {[%emt 0:00:24]} Qg1 {[%emt 0:00:52][%csl LRc1,LRd4]} 34. Nb3 {[%emt 0:01:17]} Qg2+ {[%emt 0:01:33]} 35. Kd1 {[%emt 0:00:29]} Qf3+ {[%emt 0:00:13]} 36. Kc2 {[%emt 0:00:03]} Qe4+ {[%emt 0:00:05]} 37. Kc3 {[%emt 0:00:38]} Qf3+ {[%emt 0:00:32]} 38. Kc2 {[%emt 0:00:04]} Qe4+ {[%emt 0:00:05]} 39. Kc3 {[%emt 0:00:02]} Qf3+ {[%emt 0:00:06]} 40. Kc2 {[%emt 0:00:00]} Qe4+ {[%emt 0:00:00] Weighted Error Value: White=0.07 (flawless) /Black=0.04 (flawless) .  Mistake:       	White=1     	---        Inaccurate:     	White=2     	Black=2      OK:         	White=12    	Black=11     Best:        	White=2     	Black=6      Strong:       	---       	Black=5} 1/2-1/2

[Event "FIDE Candidates 2024"]
[Site "Toronto"]
[Date "2024.04.13"]
[Round "8.1"]
[White "Praggnanandhaa R"]
[Black "Firouzja, Alireza"]
[Result "1/2-1/2"]
[ECO "B47"]
[WhiteElo "2747"]
[BlackElo "2760"]
[Annotator "TA"]
[PlyCount "80"]
[EventDate "2024.04.02"]
[EventType "tourn"]
[EventCountry "CAN"]
[SourceTitle "playchess.com"]
[Source "ChessBase"]
[SourceQuality "1"]
[TimeControl "40/7200:1800+30"]

{[%evp 9,80,3,35,28,29,6,7,8,5,18,38,16,36,23,49,22,29,0,0,0,11,0,0,0,-25,-20,-14,-5,-12,-6,-8,-11,0,-5,-13,-18,-17,-9,0,0,0,0,0,-7,0,-60,-15,-13,-13,-29,0,0,0,0,0,0,0,0,0,0,0,0,6,0,0,0,0,0,0,0,0,0,0]} 1. e4 {[%emt 0:00:51]} c5 {[%emt 0:00:07]} 2. Nf3 {[%emt 0:00:12]} e6 {[%emt 0:00:06]} 3. d4 {[%emt 0:00:24]} cxd4 {[%emt 0:00:05]} 4. Nxd4 {[%emt 0:00:04]} Nc6 {[%emt 0:00:07]} 5. Nc3 {[%emt 0:00:17][%cal Bb1c3,Bc3b5,Bb5d4][%mdl 32]} Qc7 {[%emt 0:00:06]} 6. Ncb5 {[%emt 0:01:56]} Qb8 {[%emt 0:08:37]} 7. Bd3 {[%emt 0:00:55]} a6 {[%emt 0:06:51]} 8. Nxc6 {[%emt 0:00:08]} bxc6 {[%emt 0:01:28]} 9. Nd4 {[%emt 0:01:37]} c5 {[%emt 0:10:33]} 10. Nf3 {[%emt 0:01:45]} Ne7 {[%emt 0:02:27]} 11. O-O {[%emt 0:11:54]} Bb7 {[%emt 0:05:43]} 12. c3 {[%emt 0:18:17]} Ng6 {[%emt 0:03:40]} 13. Rb1 {[%emt 0:05:04]} Be7 {[%emt 0:03:09]} 14. b4 {[%emt 0:05:05]} O-O {[%emt 0:20:28]} 15. a4 {[%emt 0:07:04]} Qc7 {[%emt 0:07:42]} 16. Re1 {[%emt 0:13:13]} d5 {[%emt 0:06:18]} 17. bxc5 {[%emt 0:06:15]} dxe4 {[%emt 0:00:30]} 18. Rxb7 {[%emt 0:01:15]} Qxb7 {[%emt 0:00:05]} 19. Bxe4 {[%emt 0:00:07] [#] A strong pair of Bishops.} Qc7 {[%emt 0:00:12]} 20. Bxa8 {[%emt 0:00:06]} Rxa8 {[%emt 0:00:04]} 21. Be3 {[%emt 0:04:42]} Bxc5 {[%emt 0:00:59]} 22. Bxc5 {[%emt 0:01:31]} Qxc5 {[%emt 0:00:49]} 23. Qd3 {[%emt 0:00:17]} Qc6 {[%emt 0:03:29]} 24. Re4 $1 {[%emt 0:02:17]} Rc8 {[%emt 0:02:32][%cal Oa6a5]} 25. h3 {[%emt 0:03:30]} h6 {[%emt 0:14:27][%cal Oa6a5]} 26. a5 {[%emt 0:06:00]} Qd5 {[%emt 0:05:03]} 27. Qxa6 {[%emt 0:04:07]} ({White should try} 27. Qxd5 $11 exd5 28. Rb4) 27... Ra8 {[%emt 0:01:07]} 28. Qc4 {[%emt 0:01:23]} Qxa5 {[%emt 0:00:55]} (28... Rxa5 {simplifies} 29. Qxd5 Rxd5 30. Rc4 Rd1+) 29. Re1 {[%emt 0:02:38]} Qd5 {[%emt 0:01:45]} 30. Qxd5 {[%emt 0:01:16] The position is equal.} exd5 $11 {[%emt 0:00:06][%mdl 4096] Endgame. KRN-KRN} 31. g3 {[%emt 0:01:23]} Rc8 {[%emt 0:00:12]} 32. Re3 {[%emt 0:00:18]} Kf8 {[%emt 0:00:31]} 33. Kg2 {[%emt 0:01:32]} Ne7 {[%emt 0:00:53]} 34. Nd4 {[%emt 0:00:15]} Nc6 {[%emt 0:00:30]} 35. Nf5 {[%emt 0:01:34]} Rd8 {[%emt 0:00:54]} 36. Rd3 {[%emt 0:01:10]} h5 {[%emt 0:00:49]} 37. Ne3 {[%emt 0:01:01]} d4 {[%emt 0:00:14]} 38. cxd4 {[%emt 0:00:04]} Rxd4 {[%emt 0:00:11]} 39. Rxd4 {[%emt 0:00:04]} Nxd4 {[%emt 0:00:05]} 40. h4 {[%emt 0:00:00]} g6 {[%emt 0:00:00] Weighted Error Value: White=0.08 (flawless) /Black=0.07 (flawless) .  Mistake:       	White=1     	---        Inaccurate:     	White=2     	Black=3      OK:         	White=13    	Black=15     Best:        	White=1     	---        Strong:       	White=1     	---} 1/2-1/2

[Event "FIDE Candidates 2024"]
[Site "Toronto"]
[Date "2024.04.13"]
[Round "8.3"]
[White "Nakamura, Hikaru"]
[Black "Caruana, Fabiano"]
[Result "1-0"]
[ECO "C78"]
[WhiteElo "2789"]
[BlackElo "2803"]
[Annotator "TA"]
[PlyCount "69"]
[EventDate "2024.04.02"]
[EventType "tourn"]
[EventCountry "CAN"]
[SourceTitle "playchess.com"]
[Source "ChessBase"]
[SourceQuality "1"]
[TimeControl "40/7200:1800+30"]

{[%evp 13,69,12,14,8,20,15,11,20,24,23,47,21,46,0,0,0,25,0,0,4,4,0,-10,-9,7,0,0,-27,0,-25,9,5,14,16,1,18,10,0,6,12,53,56,53,51,78,82,96,20,112,93,88,90,100,89,780,816,822,810]} 1. e4 {[%emt 0:00:06]} e5 {[%emt 0:00:04]} 2. Nf3 {[%emt 0:00:12]} Nc6 {[%emt 0:00:06]} 3. Bb5 {[%emt 0:00:06]} a6 {[%emt 0:00:05]} 4. Ba4 {[%emt 0:00:05]} Nf6 {[%emt 0:00:05]} 5. d3 {[%emt 0:00:07]} Bc5 {[%emt 0:00:11]} 6. O-O {[%emt 0:00:11]} d6 {[%emt 0:06:08]} 7. c3 {[%emt 0:02:31]} O-O {[%emt 0:03:09]} 8. Re1 {[%emt 0:00:26]} Ne7 {[%emt 0:04:18]} 9. Nbd2 {[%emt 0:02:22]} Ng6 {[%emt 0:00:20]} 10. Nf1 {[%emt 0:05:57] The position is equal.} d5 {[%emt 0:09:10]} 11. exd5 {[%emt 0:14:49]} Nxd5 {[%emt 0:02:17]} 12. Bb3 {[%emt 0:00:47]} (12. Nxe5 $5 Bxf2+ 13. Kxf2 Nxe5 14. Kg1 $11 (14. Rxe5 Qf6+ 15. Kg1 Qxe5 $17)) 12... c6 {[%emt 0:05:20]} 13. d4 {[%emt 0:02:44]} (13. Nxe5 $14 Bxf2+ 14. Kxf2 Nxe5 15. Kg1) 13... exd4 $11 {[%emt 0:00:20]} 14. Nxd4 {[%emt 0:00:06]} Nf6 {[%emt 0:17:29]} 15. h3 {[%emt 0:04:13]} Bxd4 {[%emt 0:00:05]} 16. cxd4 {[%emt 0:00:55]} Nd5 {[%emt 0:05:55]} 17. Bc2 {[%emt 0:13:39]} Be6 {[%emt 0:01:57]} 18. Ng3 {[%emt 0:01:14]} Ndf4 {[%emt 0:04:43]} 19. Re4 {[%emt 0:08:39]} Nd5 {[%emt 0:08:10]} 20. a3 {[%emt 0:01:44]} Re8 {[%emt 0:00:40]} 21. Bd2 {[%emt 0:12:00]} Nf6 {[%emt 0:11:52]} 22. Bg5 {[%emt 0:00:59] A strong pair of Bishops.} h6 {[%emt 0:00:04]} 23. Bxf6 {[%emt 0:07:22]} Qxf6 {[%emt 0:00:05]} 24. Qd2 {[%emt 0:01:07]} Qg5 {[%emt 0:04:09]} 25. Re3 {[%emt 0:01:42]} Nf4 $132 {[%emt 0:19:40][%mdl 2048] [#] Black is fighting back} 26. h4 $1 {[%emt 0:03:02]} Qd5 {[%emt 0:00:15][%csl Gf4][%cal Rd5g2]} (26... Qf6 27. Rf3) 27. Re4 {[%emt 0:10:43]} Ng6 {[%emt 0:00:52]} 28. Rae1 {[%emt 0:00:20]} Nf8 {[%emt 0:01:15]} ({Avoid the trap} 28... f5 $2 29. Nxf5 Nf8 (29... Qxf5 $2 {is the wrong capture.} 30. Rxe6 Qxe6 31. Rxe6 $18) 30. Re5 $18) 29. Re5 {[%emt 0:05:37]} Qd8 {[%emt 0:00:25]} 30. h5 {[%emt 0:00:51]} (30. Qf4 $16 {Strongly threatening Nh5.} Qf6 31. Qxf6 gxf6 32. R5e3) 30... Bd7 {[%emt 0:02:49]} (30... Qb6 $11 {keeps the balance.}) 31. Rxe8 $16 {[%emt 0:03:33]} Bxe8 {[%emt 0:00:03]} 32. Nf5 {[%emt 0:00:04][%cal Of5h6,Bg3f5,Bf5e7,Be7d5][%mdl 32] And now Nxh6+! would win.} Qf6 {[%emt 0:00:08]} 33. Qb4 {[%emt 0:00:05] Black must now prevent Ne7+. White has more active pieces.} b5 $2 {[%emt 0:02:24][%mdl 8192]} (33... Bd7 $16 34. Qxb7 Bxf5 35. Bxf5 (35. Qxa8 Bxc2 36. Re8 Qd6 $18) 35... Rd8) 34. Ne7+ $18 {[%emt 0:00:08]} Kh8 {[%emt 0:00:04] [#]} 35. Nd5 $1 {[%emt 0:00:04][%mdl 512] Weighted Error Value: White=0.12 (very precise) /Black=0.19 (very precise) .  Loses game:     	---       	Black=1      Mistake:       	White=2     	Black=1      Inaccurate:     	White=2     	Black=4      OK:         	White=8     	Black=3      Best:        	White=5     	Black=3} 1-0

[Event "FIDE Candidates 2024"]
[Site "Toronto"]
[Date "2024.04.13"]
[Round "8.4"]
[White "Nepomniachtchi, Ian"]
[Black "Abasov, Nijat"]
[Result "1/2-1/2"]
[ECO "C01"]
[WhiteElo "2758"]
[BlackElo "2632"]
[Annotator "TA"]
[PlyCount "125"]
[EventDate "2024.04.02"]
[EventType "tourn"]
[EventCountry "CAN"]
[SourceTitle "playchess.com"]
[Source "ChessBase"]
[SourceQuality "1"]
[TimeControl "40/7200:1800+30"]

{[%evp 44,125,5,2,16,0,0,0,0,0,0,0,0,-12,0,0,5,1,9,13,6,0,0,0,2,0,0,0,6,0,2,0,0,4,10,10,8,7,22,24,25,8,13,8,8,14,16,13,28,27,34,23,23,23,59,72,67,66,72,72,72,17,74,50,56,49,49,49,49,49,70,49,49,49,49,49,49,49,49,0,0,0,49,0]} 1. e4 {[%emt 0:00:04]} e5 {[%emt 0:00:03]} 2. Nf3 {[%emt 0:00:06]} Nf6 {[%emt 0:00:04]} 3. Nxe5 {[%emt 0:00:06]} d6 {[%emt 0:00:04]} 4. Nf3 {[%emt 0:00:07]} Nxe4 {[%emt 0:00:04]} 5. d3 {[%emt 0:00:06]} Nf6 {[%emt 0:00:05]} 6. d4 {[%emt 0:00:05]} d5 {[%emt 0:00:14]} 7. Bd3 {[%emt 0:00:07]} c5 {[%emt 0:00:36]} 8. O-O {[%emt 0:02:03] C01: French: Exchange Variation.} c4 {[%emt 0:00:31]} 9. Be2 {[%emt 0:05:24]} Nc6 {[%emt 0:03:10]} 10. b3 {[%emt 0:01:24]} cxb3 {[%emt 0:00:32]} 11. axb3 {[%emt 0:00:33]} Bd6 {[%emt 0:07:45]} 12. c4 {[%emt 0:09:26]} O-O {[%emt 0:03:14]} 13. Nc3 {[%emt 0:01:57]} h6 {[%emt 0:04:43]} 14. cxd5 {[%emt 0:24:52]} Nb4 {[%emt 0:23:22]} 15. Ne5 {[%emt 0:00:08]} Nbxd5 {[%emt 0:08:10]} 16. Nxd5 {[%emt 0:01:19]} Nxd5 {[%emt 0:01:05]} 17. Bc4 {[%emt 0:00:04]} Be6 {[%emt 0:07:51]} 18. Qf3 {[%emt 0:01:24]} Bb4 {[%emt 0:00:20]} 19. Qg3 $146 {[%emt 0:02:59]} ({Predecessor:} 19. Bb2 a6 20. Rfd1 b5 21. Bd3 Qd6 22. h3 Rac8 23. Bf5 Bc3 24. Bxc3 Rxc3 25. Rd3 Rfc8 26. Bxe6 Qxe6 27. Rxc3 Nxc3 {0-1 Darpan,I (2112)-Balint,V (2271) Budapest FS10 IM 2021 (2)}) 19... Kh8 {[%emt 0:01:24]} 20. Ra2 {[%emt 0:02:22]} a5 {[%emt 0:08:30]} 21. Re2 {[%emt 0:02:51]} Qb6 {[%emt 0:06:18]} 22. Re4 {[%emt 0:14:24]} Nc3 {[%emt 0:04:18]} 23. Re3 {[%emt 0:00:25]} Bxc4 {[%emt 0:02:10]} (23... Qxd4 $2 24. Bxe6 fxe6 25. Ng6+ Kh7 26. Nxf8+ Rxf8 27. Bb2 $18 (27. Rxe6 Rf6 $18)) 24. Nxc4 {[%emt 0:04:59]} (24. bxc4 $5 Qxd4 25. Bb2 $18) 24... Qxd4 {[%emt 0:01:56]} 25. Bb2 {[%emt 0:04:12]} b5 $1 {[%emt 0:00:06]} 26. Rxc3 {[%emt 0:17:35]} bxc4 {[%emt 0:00:34]} 27. Rc2 {[%emt 0:00:06]} c3 {[%emt 0:00:12]} 28. Rxc3 {[%emt 0:00:23]} Bd6 {[%emt 0:06:09]} (28... Bxc3 $2 29. Bxc3 $18) (28... Rg8 $5 29. Rc2 $8 Qd5 $11) 29. Qf3 {[%emt 0:01:01]} Be5 {[%emt 0:03:45]} 30. Rc2 {[%emt 0:04:02]} ({Of course not} 30. Rc8 Bxh2+ 31. Kh1 (31. Kxh2 $2 {loses.} Qd6+ 32. Qg3 Qxg3+ 33. fxg3 Raxc8 $19) 31... Qh4 $17) 30... Qf4 {[%emt 0:00:10]} 31. Qxf4 {[%emt 0:01:12]} Bxf4 {[%emt 0:00:06]} 32. Rc4 {[%emt 0:02:08]} Bd6 {[%emt 0:02:06]} 33. Rd1 {[%emt 0:01:14]} Rfd8 {[%emt 0:00:13]} 34. Kf1 {[%emt 0:00:12]} Kg8 {[%emt 0:02:54]} 35. Bc3 {[%emt 0:00:37]} Be7 {[%emt 0:03:13]} 36. Rxd8+ {[%emt 0:01:46]} Bxd8 {[%emt 0:00:06]} 37. Ke2 {[%emt 0:00:04]} Kf8 {[%emt 0:07:54]} 38. Kd3 {[%emt 0:00:13]} Bb6 {[%emt 0:00:06]} 39. f3 {[%emt 0:00:51]} Rd8+ {[%emt 0:00:36]} 40. Kc2 {[%emt 0:00:00]} f6 {[%emt 0:00:00]} 41. Rc6 {[%emt 0:05:14]} Rb8 {[%emt 0:03:12]} 42. Kb2 {[%emt 0:02:42]} Ke7 {[%emt 0:02:40]} 43. Ka3 {[%emt 0:01:53]} Kd7 {[%emt 0:01:55]} 44. Rc4 {[%emt 0:00:23]} Re8 {[%emt 0:04:13]} 45. Rg4 {[%emt 0:01:35]} g5 {[%emt 0:00:11]} 46. Bxf6 {[%emt 0:11:59]} Re2 {[%emt 0:00:06]} 47. b4 {[%emt 0:04:08]} axb4+ {[%emt 0:01:39]} 48. Kxb4 {[%emt 0:00:02]} Be3 {[%emt 0:05:54]} 49. h4 {[%emt 0:02:42]} gxh4 {[%emt 0:10:45]} 50. Bxh4 {[%emt 0:01:51]} Bc1 {[%emt 0:00:04]} 51. Kc4 {[%emt 0:00:51]} Ke6 {[%emt 0:01:05] [#]} 52. Rg7 {[%emt 0:02:19]} (52. Re4+ $1 $16 Rxe4+ 53. fxe4) 52... Re5 {[%emt 0:01:39]} (52... Rc2+ $11 {keeps the balance.} 53. Kd3 Rd2+ 54. Kc3 Ra2) 53. Kd3 {[%emt 0:02:14]} Bg5 {[%emt 0:00:33]} 54. Bf2 {[%emt 0:00:22]} Rd5+ {[%emt 0:00:05]} 55. Ke2 $1 {[%emt 0:00:06]} Rd2+ {[%emt 0:01:26]} 56. Ke1 $1 {[%emt 0:00:16]} Ra2 {[%emt 0:01:40]} 57. g3 {[%emt 0:02:10]} Ra1+ {[%emt 0:00:32]} 58. Ke2 {[%emt 0:00:05]} Ra2+ {[%emt 0:00:05]} 59. Kf1 {[%emt 0:00:10]} Ra1+ {[%emt 0:00:09]} 60. Kg2 {[%emt 0:00:30]} Ra2 {[%emt 0:00:06]} 61. Kf1 {[%emt 0:02:55]} (61. Ra7 $1 $14 Rxa7 62. Bxa7) 61... Ra1+ $1 $11 {[%emt 0:00:05]} 62. Kg2 {[%emt 0:00:09]} (62. Ke2 $11 {is superior.}) 62... Ra2 $1 $14 {[%emt 0:00:04]} 63. Kf1 {[%emt 0:00:24]} (63. Ra7 $1 $14 {is more appropriate.} Rxa7 64. Bxa7) 1/2-1/2